{"text_format":"1","workbook":"xlsx","n_sheets":1,"sheets":["Presupuesto Proyecto Ac"],"not_rendered":{"charts":0,"images":2,"macros":1,"external_links":0,"defined_names":5,"comments":1,"pivot_tables":0},"unopened":[],"bounds":{"document_bytes":16777216,"sheet_cells":100000,"rows_first":2000,"rows_last":500,"rows_between":2000,"halvings":0,"cell_chars":16384,"cell_head_chars":4096},"cells_cut":0,"cells_raw":0,"read":"whole","date_system":"1900"}

{"sheet":"Presupuesto Proyecto Ac","index":0,"n_rows":182,"n_cols":6,"rows_kept":182,"cut":false,"hidden":false,"merged":[]}
[null,null,null,null,null,"Documento básico 3"]
[null,null,null,null,null,"Ámbito temático \"A\": Acompañamiento y Formación"]
["Subvencions de l'Ajuntament de Barcelona per a",null,null,null,null,"Modalidad \"c\":Proyectos de formación dirigidos a proyectos colectivos de emprendeduría para capacitar"]
["la promoció i reforç de l'economia social i solidària 2019",null,null,null,null,"en Economia Social y Solidaria e impulsar la sostenibilidad económica y técnica de los proyectos"]
[null,null,null,null,null,"Se deben rellenar las celdas en blanco, y añadir filas en caso que sea necesario."]
[null,null,null,null,null,"Consultar anotaciones a pie de página antes de completar los datos."]
[null,null,null,null,null," "]
["DATOS BÁSICOS"]
["Nombre de la persona jurídica/física",null,null,null,null,"  "]
["NIF de la persona jurídica/física"]
["Denominación del proyecto"]
["Importe total del proyecto"]
["Importe imputable a la subvención municipal"]
["% de l’Importe solicitado a la subvención municipal a cambiar en REC (Recurs Econòmic Ciutadà) "]
["Importe de l'aportació / Cofinanciación de la entidad"]
["% de l'Importe solicitado respecto al total del proyecto",{"$f":"B13/B12","v":{"$error":"#DIV/0!"}}]
["Fecha de inicio del proyecto subvencionado (dd/mm/aaaa)"]
["Fecha de fin del proyecto subvencionado (dd/mm/aaaa)"]
[]
["PREVISIÓN DE GASTOS DEL PROYECTO"]
[]
["Partidas","Importe total del proyecto","Importe imputable a la subvención municipal","Importe de l'aportació / Cofinanciación de la entidad"]
["D1.  Nóminas y seguredad social IRPF (régimen general o régimen de autónomos) del personal propio vinculado al proyecto.",{"$f":"SUM(DespesesProjecte[[#This Row],[Importe imputable a la subvención municipal]],DespesesProjecte[[#This Row],[Importe de l''aportació / Cofinanciación de la entidad]])","v":0},{"$f":"SUM(C24:C28)","v":0},{"$f":"SUM(D24:D28)","v":0}]
[]
[]
[]
[]
[]
["D2.  Trabajos realizados por profesionales y empresas externas directamente vinculados al proyecto",{"$f":"SUM(DespesesProjecte[[#This Row],[Importe imputable a la subvención municipal]],DespesesProjecte[[#This Row],[Importe de l''aportació / Cofinanciación de la entidad]])","v":0},{"$f":"SUM(C30:C34)","v":0},{"$f":"SUM(D30:D34)","v":0}]
[]
[]
[]
[]
[]
["D3. Alquiler de bienes muebles/inmuebles directamente vinculados al proyecto.",{"$f":"SUM(DespesesProjecte[[#This Row],[Importe imputable a la subvención municipal]],DespesesProjecte[[#This Row],[Importe de l''aportació / Cofinanciación de la entidad]])","v":0},{"$f":"SUM(C36:C40)","v":0},{"$f":"SUM(D36:D40)","v":0}]
[]
[]
[]
[]
[]
["D4.  Adquisición de materiales y bienes consumibles íntegramente imputables al proyecto.",{"$f":"SUM(DespesesProjecte[[#This Row],[Importe imputable a la subvención municipal]],DespesesProjecte[[#This Row],[Importe de l''aportació / Cofinanciación de la entidad]])","v":0},{"$f":"SUM(C42:C46)","v":0},{"$f":"SUM(D42:D46)","v":0}]
[]
[]
[]
[]
[]
["D5. Transporte – mensajería imputables al proyecto",{"$f":"SUM(DespesesProjecte[[#This Row],[Importe imputable a la subvención municipal]],DespesesProjecte[[#This Row],[Importe de l''aportació / Cofinanciación de la entidad]])","v":0},{"$f":"SUM(C48:C52)","v":0},{"$f":"SUM(D48:D52)","v":0}]
[]
[]
[]
[]
[]
["D6. Publicidad y propaganda de las actividades vinculadas al proyecto.",{"$f":"SUM(DespesesProjecte[[#This Row],[Importe imputable a la subvención municipal]],DespesesProjecte[[#This Row],[Importe de l''aportació / Cofinanciación de la entidad]])","v":0},{"$f":"SUM(C54:C58)","v":0},{"$f":"SUM(D54:D58)","v":0}]
[]
[]
[]
[]
[]
["D7.  Alojamiento y dietas, del personal contratado y voluntarios.",{"$f":"SUM(DespesesProjecte[[#This Row],[Importe imputable a la subvención municipal]],DespesesProjecte[[#This Row],[Importe de l''aportació / Cofinanciación de la entidad]])","v":0},{"$f":"SUM(C60:C64)","v":0},{"$f":"SUM(D60:D64)","v":0}]
[]
[]
[]
[]
[]
["D8.  Ayudas al transporte para los/las participantes de los proyectos en caso que sea necesario, de manera justificada.",{"$f":"SUM(DespesesProjecte[[#This Row],[Importe imputable a la subvención municipal]],DespesesProjecte[[#This Row],[Importe de l''aportació / Cofinanciación de la entidad]])","v":0},{"$f":"SUM(C66:C70)","v":0},{"$f":"SUM(D66:D70)","v":0}]
[]
[]
[]
[]
[]
["D9.  Viajes y desplazamientos imputables a las actividades del proyecto.",{"$f":"SUM(DespesesProjecte[[#This Row],[Importe imputable a la subvención municipal]],DespesesProjecte[[#This Row],[Importe de l''aportació / Cofinanciación de la entidad]])","v":0},{"$f":"SUM(C72:C76)","v":0},{"$f":"SUM(D72:D76)","v":0}]
[]
[]
[]
[]
[]
["D10. Tributos, cuando sean abonados directamente por la persona jurídica o física beneficiaria.",{"$f":"SUM(DespesesProjecte[[#This Row],[Importe imputable a la subvención municipal]],DespesesProjecte[[#This Row],[Importe de l''aportació / Cofinanciación de la entidad]])","v":0},{"$f":"SUM(C78:C82)","v":0},{"$f":"SUM(D78:D82)","v":0}]
[]
[]
[]
[]
[]
["D11.  Gastos del informe de auditoria, cuando sea obligatoria su presentación por el importe de la subvención. ",{"$f":"SUM(DespesesProjecte[[#This Row],[Importe imputable a la subvención municipal]],DespesesProjecte[[#This Row],[Importe de l''aportació / Cofinanciación de la entidad]])","v":0},{"$f":"SUM(C84:C88)","v":0},{"$f":"SUM(D84:D88)","v":0}]
[]
[]
[]
[]
[]
["D12.   Otros gastos que de manera justificada y por la tipologia del proyecto puedan imputarse directamente al proyecto.",{"$f":"SUM(DespesesProjecte[[#This Row],[Importe imputable a la subvención municipal]],DespesesProjecte[[#This Row],[Importe de l''aportació / Cofinanciación de la entidad]])","v":0},{"$f":"SUM(C90:C94)","v":0},{"$f":"SUM(D90:D94)","v":0}]
[]
[]
[]
[]
[]
["D13.  Becas para personas con dificultades económicas destinatarias de los proyectos. ",{"$f":"SUM(DespesesProjecte[[#This Row],[Importe imputable a la subvención municipal]],DespesesProjecte[[#This Row],[Importe de l''aportació / Cofinanciación de la entidad]])","v":0},{"$f":"SUM(C96:C100)","v":0},{"$f":"SUM(D96:D100)","v":0}]
[]
[]
[]
[]
[]
["TOTAL GASTOS DIRECTOS (aquellos que se identifican directamente con el proyecto)",{"$f":"SUM(B23,B29,B35,B41,B47,B53,B59,B65,B71,B77,B83,B89,B95)","v":0},{"$f":"SUM(C23,C29,C35,C41,C47,C53,C59,C65,C71,C77,C83,C89,C95)","v":0},{"$f":"SUM(D23,D29,D35,D41,D47,D53,D59,D65,D71,D77,D83,D89,D95)","v":0}]
["I1.  Personal de soporte al proyecto (nóminas y seguridad social)",{"$f":"SUM(DespesesProjecte[[#This Row],[Importe imputable a la subvención municipal]],DespesesProjecte[[#This Row],[Importe de l''aportació / Cofinanciación de la entidad]])","v":0},{"$f":"SUM(C103:C107)","v":0},{"$f":"SUM(D103:D107)","v":0}]
[]
[]
[]
[]
[]
["I2.  Seguros",{"$f":"SUM(DespesesProjecte[[#This Row],[Importe imputable a la subvención municipal]],DespesesProjecte[[#This Row],[Importe de l''aportació / Cofinanciación de la entidad]])","v":0},{"$f":"SUM(C109:C113)","v":0},{"$f":"SUM(D109:D113)","v":0}]
[]
[]
[]
[]
[]
["I3.  Amortitzación",{"$f":"SUM(DespesesProjecte[[#This Row],[Importe imputable a la subvención municipal]],DespesesProjecte[[#This Row],[Importe de l''aportació / Cofinanciación de la entidad]])","v":0},{"$f":"SUM(C115:C119)","v":0},{"$f":"SUM(D115:D119)","v":0}]
[]
[]
[]
[]
[]
["I4.  Lloguer de béns immobles.",{"$f":"SUM(DespesesProjecte[[#This Row],[Importe imputable a la subvención municipal]],DespesesProjecte[[#This Row],[Importe de l''aportació / Cofinanciación de la entidad]])","v":0},{"$f":"SUM(C121:C125)","v":0},{"$f":"SUM(D121:D125)","v":0}]
[]
[]
[]
[]
[]
["I5.  Adquisición  de materiales y bienes consumibles parcialmente imputables al proyecto",{"$f":"SUM(DespesesProjecte[[#This Row],[Importe imputable a la subvención municipal]],DespesesProjecte[[#This Row],[Importe de l''aportació / Cofinanciación de la entidad]])","v":0},{"$f":"SUM(C127:C131)","v":0},{"$f":"SUM(D127:D131)","v":0}]
[]
[]
[]
[]
[]
["I6. Mantenimiento de edificios i/o instalaciones",{"$f":"SUM(DespesesProjecte[[#This Row],[Importe imputable a la subvención municipal]],DespesesProjecte[[#This Row],[Importe de l''aportació / Cofinanciación de la entidad]])","v":0},{"$f":"SUM(C133:C137)","v":0},{"$f":"SUM(D133:D137)","v":0}]
[]
[]
[]
[]
[]
["I7.  Comunicaciones (teléfono, correos, conexión a internet)",{"$f":"SUM(DespesesProjecte[[#This Row],[Importe imputable a la subvención municipal]],DespesesProjecte[[#This Row],[Importe de l''aportació / Cofinanciación de la entidad]])","v":0},{"$f":"SUM(C139:C143)","v":0},{"$f":"SUM(D139:D143)","v":0}]
[]
[]
[]
[]
[]
["I8.  Gastos financieros",{"$f":"SUM(DespesesProjecte[[#This Row],[Importe imputable a la subvención municipal]],DespesesProjecte[[#This Row],[Importe de l''aportació / Cofinanciación de la entidad]])","v":0},{"$f":"SUM(C145:C149)","v":0},{"$f":"SUM(D145:D149)","v":0}]
[]
[]
[]
[]
[]
["I9.  Suministros",{"$f":"SUM(DespesesProjecte[[#This Row],[Importe imputable a la subvención municipal]],DespesesProjecte[[#This Row],[Importe de l''aportació / Cofinanciación de la entidad]])","v":0},{"$f":"SUM(C151:C155)","v":0},{"$f":"SUM(D151:D155)","v":0}]
[]
[]
[]
[]
[]
["I10.  Trabajos realizados por otras empresas, parcialmente imputables a al proyecto (limpieza, seguridad...)",{"$f":"SUM(DespesesProjecte[[#This Row],[Importe imputable a la subvención municipal]],DespesesProjecte[[#This Row],[Importe de l''aportació / Cofinanciación de la entidad]])","v":0},{"$f":"SUM(C157:C161)","v":0},{"$f":"SUM(D157:D161)","v":0}]
[]
[]
[]
[]
[]
["TOTAL GASTOS INDIRECTOS (se podran asignara la proyecto haciendo uso de un porcentaje de asignación) - Máximo 10% del importe imputable a la subvención municipal",{"$f":"SUM(B102,B108,B114,B120,B126,B132,B138,B144,B150,B156)","v":0},{"$f":"SUM(C102,C108,C114,C120,C126,C132,C138,C144,C150,C156)","v":0},{"$f":"SUM(D102,D108,D114,D120,D126,D132,D138,D144,D150,D156)","v":0}]
["TOTAL DE GASTOS PREVISTOS",{"$f":"SUM(B101,B162)","v":0},{"$f":"SUM(C101,C162)","v":0},{"$f":"SUM(D101,D162)","v":0}]
[]
[]
["1.  La cuantía de la subvención otorgada no superará el 80% del gasto total del proyecto a subvencionar. "]
["2.  El importe máximo de subvención para la modalidad \"c\" del ámbito temático de Acompañamiento y Formación (Aa) es de 10.000 €."]
["3.  En caso que la solicitud presentada sobrepase el importe máximo, se considerará como importe solicitado el máximo de lo establecido en la convocatoria. "]
["4.  Los gastos indirectos imputados al proyecto detallados no podrán superar el 10 % del importe de la subvención."]
["5.  Los gastos de personal propio asignado al proyecto tendrán que acreditarse como gasto directo y efectivamente realizado en el proyecto"]
["      manteniendo una relación directa con las horas de formación debidamente justificadas. "]
["6.  Serán subvencionables en esta modalidad las becas para personas con dificultades económicas destinatarias de los proyectos, "]
["     siempre que se aporte en el momento de la justificació document de transferencia bancaria que demuestre el cobro por parte de la persona destinataria."]
["7.   El carácter subvencionable del gasto de amortización estará sujeto a las condiciones siguientes:"]
["- Que las subvenciones no hayan contribuidio a la compra de bienes."]
["- Que la amortitzación se calcula de conformidad con las normas de compatibilidad generalmente aceptadas. "]
["- Que el coste se refiera al periodo subvencionable."]
["8. En ningún caso se considerarán gastos subvencionables:"]
["- Los impuestos indirectos cuando sean susceptibles de recuperación o compensación, ni los impuestos sobre la renta. "]
["- Los gastos de inversión, incluidas las adquisiciones de bienes muebles. "]
["- Los gastos realizados con fecha anterior al inicio del proyecto y fecha posterior a la fecha de finalización del proyecto. "]
["- Otros gastos Que se indiquen en la convocatoria."]